fUSD/lending_fUSD_20251221
["ID","MTS","AMOUNT","RATE_DAILY","PERIOD"]
[399404641,1766327667154,-1000.0,0.00046,120]
[399404642,1766327667248,-568.0,0.00046,120]
[399404643,1766327667339,-150.0,0.00046,120]
[399404644,1766327667432,-1000.0,0.00046,120]
[399404645,1766327667526,-1000.0,0.00046,120]
[399404646,1766327667614,-1000.0,0.00046,120]
[399404647,1766327667708,-1000.0,0.00046,120]
[399404648,1766327667799,-1000.0,0.00046,120]
[399404649,1766327667889,-1000.0,0.00046,120]
[399404650,1766327667984,-353.0,0.00046,120]
[399404651,1766327668081,-1142.97245494,0.00046,120]
[399404652,1766327668174,-2465.41586057,0.00046,120]
[399404653,1766327668268,-157.0,0.00046,120]
[399404654,1766327668360,-176.0,0.000461,120]
[399404655,1766327668451,-2000.0,0.000462,120]
[399404656,1766327668543,-500.0,0.00046255,60]
[399404657,1766327668631,-1303.87813955,0.000463,120]
[399404658,1766327668730,-2000.0,0.000464,120]
[399404659,1766327668832,-245.20794141,0.0004649,120]
[399404660,1766327668935,-500.0,0.000465,120]
[399404661,1766327669030,-500.0,0.000465,120]
[399404662,1766327669124,-2000.0,0.000465,60]
[399404663,1766327669219,-157.0,0.000465,120]
[399404664,1766327669311,-2000.0,0.000466,120]
[399404665,1766327669402,-176.0,0.000466,120]
[399404666,1766327669493,-8002.00556819,0.00046667,120]
[399404668,1766327669582,-538.9879895,0.000468,120]
[399404669,1766327669674,-2000.0,0.000468,120]
[399404670,1766327669768,-1369.5018605,0.000468,120]
[399404671,1766327669863,-500.0,0.00046803,60]
[399404672,1766327669960,-1450.13552202,0.000469,120]
[399404673,1766327670052,-236.08372309,0.00047,120]
[399404674,1766327670141,-4000.0,0.00047,120]
[399404675,1766327670230,-2000.0,0.00047,120]
[399404676,1766327670322,-150.0,0.00047,60]
[399404677,1766327670410,-200.0,0.00047,120]
[399404678,1766327670496,-150.0,0.00047,120]
[399404679,1766327670581,-4181.0,0.00047,120]
[399404680,1766327670666,-157.0,0.000471,120]
[399404681,1766327670750,-2000.0,0.000472,120]
[399404682,1766327670832,-176.0,0.000472,120]
[399404683,1766327670916,-196.38357955,0.00047203,120]
[399404684,1766327671010,-5043.72,0.0004725,120]
[399404685,1766327671099,-2552.57,0.0004725,120]
[399404686,1766327671190,-1505.56176509,0.00047308,120]
[399404687,1766327671279,-500.0,0.00047351,60]
[399404688,1766327671370,-2000.0,0.000474,120]
[399404689,1766327671458,-182.58507349,0.000475,120]
[399404690,1766327671547,-500.0,0.000475,120]
[399404691,1766327671641,-2000.0,0.000476,120]
[399404692,1766327671734,-157.0,0.000476,120]
[399404693,1766327671826,-176.0,0.000477,120]
[399404694,1766327671912,-2000.0,0.000478,120]
[399404695,1766327672002,-500.0,0.00047899,60]
[399404696,1766327672089,-1087.62,0.000479,120]
[399404697,1766327672176,-1000.0,0.00047999,120]
[399404698,1766327672267,-878.71076785,0.00048,120]
[399404699,1766327672532,-575.08484086,0.00048,120]
[399404700,1766327672621,-676.18785584,0.00048,120]
[399404701,1766327672714,-4000.0,0.00048,120]
[399404702,1766327672804,-200.0,0.00048,120]
[399404703,1766327672896,-666.0,0.00048,120]
[399404704,1766327672984,-2200.0,0.00048,120]
[399404705,1766327673079,-150.0,0.00048,120]
[399404706,1766327673172,-500.0,0.00048,120]
[399404707,1766327673262,-1164.99217208,0.00048,120]
[399404708,1766327673354,-1758.63322221,0.00048,120]
[399404709,1766327673445,-2102.22642895,0.00048,120]
[399404710,1766327673533,-1229.021579,0.00048,120]
[399404711,1766327673626,-2378.69751326,0.00048,120]
[399404712,1766327673719,-10428.02230757,0.00048,120]
[399404713,1766327673809,-2426.97744318,0.00048,120]
[399404714,1766327673902,-1142.97245494,0.00048,120]
[399404715,1766327673993,-215.8176846,0.00048047,120]
[399404716,1766327674088,-218.29086812,0.00048047,120]
[399404717,1766327674182,-219.18803495,0.00048047,120]
[399404718,1766327674275,-2040.36537107,0.000481,120]
[399404719,1766327674367,-666.0,0.000482,120]
[399404720,1766327674460,-1744.07676452,0.000482,120]
[399404721,1766327674549,-157.0,0.000482,120]
[399404722,1766327674638,-176.0,0.000483,120]
[399404723,1766327674727,-666.0,0.000484,120]
[399404724,1766327674815,-500.0,0.00048447,60]
[399404725,1766327674912,-500.0,0.000485,120]
[399404726,1766327675006,-666.0,0.000486,120]
[399404727,1766327675097,-157.0,0.000487,120]
[399404728,1766327675192,-2000.31155325,0.0004877,73]
[399404729,1766327675289,-666.0,0.000488,120]
[399404730,1766327675382,-3626.5817396,0.000488,120]
[399404731,1766327675474,-4480.84498792,0.000488,120]
[399404732,1766327675564,-1000.0,0.000488,120]
[399404733,1766327675654,-1000.0,0.000488,120]
[399404734,1766327675744,-1000.0,0.000488,120]
[399404735,1766327675831,-1000.0,0.000488,120]
[399404736,1766327675920,-176.0,0.000488,120]
[399404737,1766327676015,-1275.53587933,0.00048875,60]
[399404738,1766327676105,-851.7595554,0.000489,120]
[399404739,1766327676195,-342.97082182,0.000489,120]
[399404740,1766327676290,-1247.7514446,0.000489,120]
[399404741,1766327676390,-4168.26658096,0.000489,120]
[399404742,1766327676486,-500.0,0.00048995,60]
[399404743,1766327676574,-500.0,0.00049,120]
[399404744,1766327676662,-484.89462759,0.00049,120]
[399404745,1766327676751,-4000.0,0.00049,120]
[399404746,1766327676838,-666.0,0.00049,120]
[399404747,1766327676923,-419.44222343,0.00049,120]
[399404748,1766327677011,-429.12637,0.00049,120]
[399404749,1766327677097,-150.0,0.00049,120]
[399404750,1766327677186,-2306.89998097,0.00049,120]
[399404751,1766327677274,-938.5288408,0.00049,120]
[399404752,1766327677363,-1423.48966984,0.00049,120]
[399404753,1766327677448,-302.0,0.00049,120]
[399404754,1766327677533,-2000.0,0.00049,60]
[399404755,1766327677614,-23224.61688203,0.00049,120]
[399404756,1766327677700,-4181.0,0.00049,120]
[399404757,1766327677781,-930.0,0.00049137,120]
[399404758,1766327677868,-666.0,0.000492,120]
[399404759,1766327677953,-157.0,0.000492,120]
[399404760,1766327678044,-1349.0,0.00049278,120]
[399404761,1766327678132,-2000.0,0.00049315,120]
[399404762,1766327678222,-1377.24622472,0.00049315,120]
[399404763,1766327678314,-666.0,0.000494,120]
[399404764,1766327678402,-176.0,0.000494,120]
[399404765,1766327678487,-2000.0,0.0004944,73]
[399404766,1766327678572,-500.0,0.000495,120]
[399404767,1766327678667,-808.20105854,0.000495,120]
[399404768,1766327678763,-1664.99894073,0.000495,120]
[399404769,1766327678852,-3415.75,0.000495,120]
[399404770,1766327678937,-1000.0,0.000495,120]
[399404771,1766327679025,-1000.0,0.000495,120]
[399404772,1766327679111,-1000.0,0.000495,120]
[399404773,1766327679197,-1000.0,0.000495,120]
[399404774,1766327679285,-500.0,0.00049543,60]
[399404775,1766327679371,-666.0,0.000496,120]
[399404776,1766327679453,-2052.35593181,0.000496,120]
[399404777,1766327679538,-5043.72,0.00049613,120]
[399404778,1766327679639,-2552.57,0.00049613,120]
[399404779,1766327679738,-2000.0,0.0004968,73]
[399404780,1766327679838,-666.0,0.000498,120]
[399404781,1766327679934,-3188.0,0.000498,120]
[399404782,1766327680031,-157.0,0.000498,120]
[399404783,1766327680142,-176.0,0.000499,120]
[399404784,1766327680252,-151.0,0.00049997,120]
[399404785,1766327680341,-161.07232364,0.00049997,120]
[399404786,1766327680428,-1000.0,0.00049999,120]
[399404787,1766327680517,-3000.0,0.0005,120]
[399404788,1766327680604,-172.74899403,0.0005,120]
[399404789,1766327680692,-1070.43982025,0.0005,120]
[399404790,1766327680776,-294.83218434,0.0005,120]
[399404791,1766327680858,-1087.07465217,0.0005,120]
[399404792,1766327680942,-225.5453575,0.0005,120]
[399404793,1766327681286,-165.44897331,0.0005,120]
[399404794,1766327681378,-976.41509721,0.0005,120]
[399404795,1766327681469,-828.80751304,0.0005,120]
[399404796,1766327681564,-200.0,0.0005,120]
[399404797,1766327681652,-4000.0,0.0005,120]
[399404798,1766327681736,-200.0,0.0005,120]
[399404799,1766327681821,-166.0,0.0005,120]
[399404800,1766327681906,-1600.0,0.0005,120]
[399404801,1766327681993,-150.0,0.0005,120]
[399404802,1766327682082,-500.0,0.0005,120]
[399404803,1766327682168,-1843.4405627,0.0005,120]
[399404804,1766327682256,-1368.02680044,0.0005,120]
[399404805,1766327682347,-150.0,0.0005,120]
[399404806,1766327682437,-1957.3634,0.0005,120]
[399404807,1766327682525,-601.79382176,0.0005,120]
[399404808,1766327682614,-1141.88924073,0.0005,120]
[399404809,1766327682706,-1000.0,0.0005,120]
[399404810,1766327682798,-476.55632073,0.0005,120]
[399404811,1766327682890,-1000000.0,0.0005,120]
[399404812,1766327682982,-726000.0,0.0005,120]
[399404813,1766327683073,-468.04840462,0.0005,120]
[399404814,1766327683164,-200.0,0.0005,120]
[399404815,1766327683256,-500.0,0.0005,60]
[399404816,1766327683346,-2039.55825144,0.0005,120]
[399404817,1766327683435,-152.5080687,0.0005,120]
[399404818,1766327683523,-2136.0,0.0005,120]
[399404819,1766327683612,-1457.43898732,0.0005,120]
[399404820,1766327683709,-1853.14465847,0.0005,120]
[399404821,1766327683800,-1221.6315181,0.0005,120]
[399404822,1766327683893,-781.77,0.0005,120]
[399404823,1766327683987,-2611.57733102,0.0005,60]
[399404824,1766327684081,-2006.20323721,0.0005,120]
[399404825,1766327684175,-416.00150983,0.0005,60]
[399404826,1766327684275,-1502.62395979,0.0005,120]
[399404827,1766327684377,-234.42,0.0005,120]
[399404828,1766327684470,-938.09,0.0005,120]
[399404829,1766327684577,-484.78,0.0005,120]
[399404830,1766327684671,-1213.64254121,0.0005,120]
[399404831,1766327684765,-162.55,0.0005,120]
[399404832,1766327684861,-101000.0,0.0005,90]
[399404833,1766327684956,-167.05,0.0005,120]
[399404834,1766327685053,-17613.85,0.0005,120]
[399404835,1766327685149,-966.54770609,0.0005,120]
[399404836,1766327685247,-500.0,0.00050091,60]
[399404837,1766327685343,-1800.0,0.000501,120]
[399404838,1766327685440,-2000.00068639,0.000502,120]
[399404839,1766327685538,-157.0,0.000503,120]
[399404840,1766327685639,-176.0,0.000505,120]
[399404841,1766327685736,-500.0,0.00050639,60]
[399404842,1766327685834,-2000.0,0.00050684,120]
[399404843,1766327685940,-169.0,0.00050745,120]
[399404844,1766327686040,-498.83163489,0.000508,120]
[399404845,1766327686143,-157.0,0.000509,120]
[399404846,1766327686247,-4000.0,0.00051,120]
[399404847,1766327686350,-5000000.0,0.00051,120]
[399404848,1766327686448,-166.0,0.00051,120]
[399404849,1766327686544,-150.0,0.00051,120]
[399404850,1766327686637,-300.0,0.00051,120]
[399404851,1766327686727,-1000.0,0.00051,120]
[399404852,1766327686819,-8357.50013839,0.00051,120]
[399404853,1766327686909,-2285.94490987,0.00051,120]
[399404854,1766327687001,-4181.0,0.00051,120]
[399404855,1766327687092,-176.0,0.00051,120]
[399404856,1766327687187,-500.0,0.00051187,60]
[399404857,1766327687282,-157.0,0.000514,120]
[399404858,1766327687373,-2417.0,0.00051593,120]
[399404859,1766327687462,-911.0,0.00051593,120]
[399404860,1766327687551,-1197.0,0.00051593,120]
[399404861,1766327687651,-176.0,0.000516,120]
[399404862,1766327687750,-1170.19881765,0.000517,120]
[399404863,1766327687849,-260.44835415,0.00051735,60]
[399404865,1766327687927,-3000.0,0.000519,120]
[399404866,1766327688028,-42211.24751408,0.000519,120]
[399404867,1766327688121,-1609.6400112,0.0005198,110]
[399404868,1766327688217,-1000.0,0.00051999,120]
[399404869,1766327688311,-330.74,0.00052,120]
[399404870,1766327688400,-216.62918388,0.00052,120]
[399404871,1766327688492,-4000.0,0.00052,120]
[399404872,1766327688582,-200.0,0.00052,120]
[399404873,1766327688673,-166.0,0.00052,120]
[399404874,1766327688763,-150.0,0.00052,120]
[399404875,1766327688855,-300.0,0.00052,120]
[399404876,1766327688946,-1194.99246598,0.00052,120]
[399404877,1766327689039,-40000.01,0.00052,120]
[399404878,1766327689131,-157.0,0.00052,120]
[399404879,1766327689223,-1726.85511851,0.00052054,120]
[399404880,1766327689315,-5888.0,0.00052055,60]
[399404881,1766327689405,-5888.0,0.00052055,60]
[399404882,1766327689495,-5888.0,0.00052055,60]
[399404883,1766327689585,-5888.0,0.00052055,60]
[399404884,1766327689679,-5888.0,0.00052055,60]
[399404885,1766327689775,-5888.0,0.00052055,60]
[399404886,1766327689868,-5888.0,0.00052055,60]
[399404887,1766327689959,-5888.0,0.00052055,60]
[399404888,1766327690246,-5888.0,0.00052055,60]
[399404889,1766327690336,-5888.0,0.00052055,60]
[399404890,1766327690426,-1699.30302075,0.00052055,60]
[399404891,1766327690522,-5043.72,0.00052093,120]
[399404892,1766327690608,-2552.57,0.00052093,120]
[399404893,1766327690693,-176.0,0.000521,120]
[399404894,1766327690779,-1444.0,0.00052274,120]
[399404895,1766327690863,-500.0,0.00052283,60]
[399404896,1766327690951,-911.37356307,0.000524,120]
[399404897,1766327691039,-2000.0,0.0005244,73]
[399404898,1766327691131,-7287.80386057,0.000525,120]
[399404899,1766327691225,-1205.63549435,0.000525,120]
[399404900,1766327691319,-157.0,0.000525,120]
[399404901,1766327691406,-139219.06019242,0.00052658,120]
[399404902,1766327691496,-74968.93257148,0.00052658,120]
[399404903,1766327691588,-176.0,0.000527,120]
[399404904,1766327691678,-1986632.39816043,0.000529,120]
[399404905,1766327691767,-3468.87150631,0.00052999,120]
[399404906,1766327691855,-471.85671285,0.00052999,120]
[399404907,1766327691943,-488.80458891,0.00052999,120]
[399404908,1766327692036,-1000.0,0.00052999,120]
[399404909,1766327692125,-201.78374628,0.00053,120]
[399404910,1766327692219,-365.72122814,0.00053,120]
[399404911,1766327692316,-166.0,0.00053,120]
[399404912,1766327692408,-150.0,0.00053,120]
[399404913,1766327692496,-300.0,0.00053,120]
[399404914,1766327692582,-2256.0,0.00053,120]
[399404915,1766327692668,-4181.0,0.00053,120]
[399404916,1766327692753,-5361.0327,0.000531,120]
[399404917,1766327692839,-157.0,0.000531,120]
[399404918,1766327692920,-176.0,0.000533,120]
[399404919,1766327693006,-233.95859339,0.00053366,120]
[399404920,1766327693090,-391.45092592,0.00053379,60]
[399404921,1766327693179,-229.56770792,0.000534,120]
[399404922,1766327693270,-10000.0,0.00053425,120]
[399404923,1766327693359,-583.87918805,0.000535,120]
[399404924,1766327693449,-157.0,0.000536,120]
[399404925,1766327693548,-200.0,0.0005375,120]
[399404926,1766327693639,-206.07698695,0.000538,120]
[399404927,1766327693728,-176.0,0.000538,120]
[399404928,1766327693812,-1177.48,0.000539,120]
[399404929,1766327693896,-79322.32074268,0.0005392,120]
[399404930,1766327693982,-1000.0,0.00053999,120]
[399404931,1766327694071,-630.16182355,0.00054,120]
[399404932,1766327694163,-200.0,0.00054,120]
[399404933,1766327694253,-166.0,0.00054,120]
[399404934,1766327694345,-1403.10653535,0.00054,120]
[399404935,1766327694436,-7369.63562417,0.00054,120]
[399404936,1766327694524,-300.0,0.00054,120]
[399404937,1766327694613,-695.0,0.00054,120]
[399404938,1766327694703,-6908.5787031,0.00054,120]
[399404939,1766327694793,-2567.0,0.00054,120]
[399404940,1766327694881,-1058.77443573,0.00054,120]
[399404941,1766327694970,-769.30323784,0.00054,60]
[399404942,1766327695059,-7133.129021,0.00054,120]
[399404943,1766327695148,-1516.15349257,0.00054,120]
[399404944,1766327695239,-57629.95754579,0.00054,120]
[399404945,1766327695326,-2857.43113734,0.00054,120]
[399404946,1766327695419,-580.0,0.00054,120]
[399404947,1766327695507,-157.0,0.000541,120]
[399404948,1766327695598,-1112.840527,0.00054234,60]
[399404949,1766327695701,-176.0,0.000544,120]
[399404950,1766327695802,-1000.0,0.00054443,120]
[399404951,1766327695900,-1706.85,0.0005449,120]
[399404952,1766327695993,-500.0,0.00054521,60]
[399404953,1766327696090,-526.64142637,0.00054521,60]
[399404954,1766327696186,-250.0,0.00054521,60]
[399404955,1766327696283,-500.0,0.00054521,60]
[399404956,1766327696381,-250.0,0.00054521,60]
[399404957,1766327696478,-500.0,0.00054521,60]
[399404958,1766327696577,-250.0,0.00054521,60]
[399404959,1766327696677,-500.0,0.00054521,60]
[399404960,1766327696769,-250.0,0.00054521,60]
[399404961,1766327696858,-500.0,0.00054521,60]
[399404962,1766327696944,-250.0,0.00054521,60]
[399404963,1766327697041,-250.0,0.00054521,60]
[399404964,1766327697132,-500.0,0.00054521,60]
[399404965,1766327697225,-250.0,0.00054521,60]
[399404966,1766327697316,-500.0,0.00054521,60]
[399404967,1766327697408,-250.0,0.00054521,60]
[399404968,1766327697500,-151.0,0.00054521,60]
[399404969,1766327697592,-250.0,0.00054521,60]
[399404970,1766327697680,-500.0,0.00054521,60]
[399404971,1766327697771,-500.0,0.00054521,60]
[399404972,1766327697864,-250.0,0.00054521,60]
[399404973,1766327697958,-250.0,0.00054521,60]
[399404974,1766327698055,-500.0,0.00054521,60]
[399404975,1766327698153,-500.0,0.00054521,60]
[399404976,1766327698255,-151.0,0.00054521,60]
[399404977,1766327698354,-250.0,0.00054521,60]
[399404978,1766327698455,-500.0,0.00054521,60]
[399404979,1766327698550,-500.0,0.00054521,60]
[399404980,1766327698646,-250.0,0.00054521,60]
[399404981,1766327698743,-151.0,0.00054521,60]
[399404982,1766327699005,-500.0,0.00054521,60]
[399404983,1766327699098,-151.0,0.00054521,60]
[399404984,1766327699190,-250.0,0.00054521,60]
[399404985,1766327699282,-558.4945972,0.00054521,60]
[399404986,1766327699371,-151.0,0.00054521,60]
[399404987,1766327699458,-250.0,0.00054521,60]
[399404988,1766327699546,-151.0,0.00054521,60]
[399404989,1766327699638,-250.0,0.00054521,60]
[399404990,1766327699728,-151.0,0.00054521,60]
[399404991,1766327699817,-250.0,0.00054521,60]
[399404992,1766327699908,-151.0,0.00054521,60]
[399404993,1766327700005,-250.0,0.00054521,60]
[399404994,1766327700099,-151.0,0.00054521,60]
[399404995,1766327700193,-157.67856935,0.00054521,60]
[399404996,1766327700297,-151.0,0.00054521,60]
[399404997,1766327700397,-151.0,0.00054521,60]
[399404998,1766327700490,-151.0,0.00054521,60]
[399404999,1766327700585,-151.0,0.00054521,60]
[399405000,1766327700681,-151.0,0.00054521,60]
[399405001,1766327700770,-151.0,0.00054521,60]
[399405002,1766327700857,-151.0,0.00054521,60]
[399405003,1766327700943,-151.0,0.00054521,60]
[399405004,1766327701031,-151.0,0.00054521,60]
[399405005,1766327701118,-151.0,0.00054521,60]
[399405006,1766327701206,-151.0,0.00054521,60]
[399405007,1766327701577,502.9356116,0.00041095,120]
[399405008,1766327701682,500.0,0.00041095,120]
[399405009,1766327701774,518.62281973,0.00041095,120]
[399405010,1766327701868,518.42530697,0.00041095,120]
[399405011,1766327701959,500.0,0.00041095,120]
[399405012,1766327702049,500.0,0.00041095,120]
[399405013,1766327702177,500.0,0.00041095,120]
[399405014,1766327702270,500.0,0.00041095,120]
[399405015,1766327702365,500.0,0.00041095,120]
[399405016,1766327702457,503.00020625,0.00041095,120]
[399405017,1766327702545,616.6972413,0.00041095,120]
[399405018,1766327702632,500.0,0.00041095,120]
[399405019,1766327702726,520.51282205,0.00041095,120]
[399405020,1766327702817,500.0,0.00041095,120]
[399405021,1766327702912,500.0,0.00041095,120]
[399405022,1766327703003,500.0,0.00041095,120]
[399405023,1766327703112,500.0,0.00041095,120]
[399405024,1766327703217,500.0,0.00041095,120]
[399405025,1766327703320,500.0,0.00041095,120]
[399405026,1766327703420,504.5856469,0.00041095,120]
[399405027,1766327703521,500.0,0.00041095,120]
[399405028,1766327703629,500.0,0.00041095,120]
[399405029,1766327703746,500.0,0.00041095,120]
[399405030,1766327703865,500.0,0.00041095,120]
[399405031,1766327703980,500.0,0.00041095,120]
[399405032,1766327709168,4781.83563287,9e-05,2]
[399405033,1766327709190,2561.60193109,9e-05,2]
[399405034,1766327709429,151.0,0.00035616,31]
[399405035,1766327709718,168.850957,0.00035616,31]
[399405036,1766327709941,151.0,0.00035616,31]
[399405037,1766327710156,151.0,0.00035616,31]
[399405038,1766327710795,320.22649543,0.0002,30]
[399405039,1766327710963,340.816249,0.00035616,31]
[399405040,1766327711162,340.816249,0.00035616,31]
[399405041,1766327711350,340.816249,0.00035616,31]
[399405042,1766327711536,340.816249,0.00035616,31]
[399405043,1766327712347,4152.29036525,8e-05,2]
[399405044,1766327713598,184.677202,0.0003561,31]
[399405045,1766327716173,151.0,0.0003561,31]
[399405046,1766327721545,194.32336251,0.00033,120]
[399405047,1766327724218,1000.0,0.00035615,30]
[399405048,1766327724331,1000.0,0.00034989,30]
[399405049,1766327725496,1200.0,8.999e-05,2]
[399405050,1766327725535,300.0,8.999e-05,2]
[399405051,1766327725606,1680.0,9.899e-05,2]
[399405052,1766327725645,106.10770366,9.899e-05,2]
[399405053,1766327725666,313.89229634,9.899e-05,2]
[399405054,1766327726266,217.0,8e-05,2]
[399405055,1766327726531,193.0,8.8e-05,2]
[399405056,1766327727784,151.1,9.83e-05,2]
[399405057,1766327727824,151.1,0.00010444,2]
[399405058,1766327728141,151.0,0.0003561,31]
[399405059,1766327728375,-150.0,0.00010578,2]
[399405060,1766327728385,-4191.15418,0.00010579,2]
[399405061,1766327728396,-781.98694337,0.00010579,2]
[399405062,1766327728407,-3240.38433072,0.00010579,2]
[399405063,1766327728418,-801.98263016,0.00010579,2]
[399405064,1766327728429,-1231.20141571,0.00010579,2]
[399405065,1766327728440,-1398.05906453,0.00010579,2]
[399405066,1766327728451,-2319.58557692,0.00010579,2]
[399405067,1766327728462,-799.21,0.00010579,2]
[399405068,1766327728473,-458.86841978,0.00010579,2]
[399405069,1766327728484,-841.05406,0.00010579,2]
[399405070,1766327728495,-1200.62018473,0.00010579,2]
[399405071,1766327728507,-875.88927357,0.00010579,2]
[399405072,1766327728518,-1473.70788074,0.00010579,2]
[399405073,1766327728529,-97184.02173792,0.00010579,2]
[399405074,1766327728540,-214988.38462833,0.00010579,2]
[399405075,1766327728551,-1254.41808677,0.00010579,2]
[399405076,1766327728953,-1149.40666507,0.00010579,2]
[399405077,1766327728965,-4469.34245051,0.00010579,2]
[399405078,1766327728978,-1000.0,0.00010579,2]
[399405079,1766327728988,-226853.4951152,0.00010579,2]
[399405080,1766327728999,-2802.14483546,0.00010579,2]
[399405081,1766327729010,-430685.08252051,0.00010579,2]
[399405082,1766327729020,-706.0843,0.0001058,2]
[399405083,1766327729030,-5852.60752696,0.0001058,2]
[399405084,1766327729040,-1701.95013426,0.00010582,2]
[399405085,1766327729049,-151.0,0.00010674,2]
[399405086,1766327729058,-151.0,0.00010674,2]
[399405087,1766327729068,-151.0,0.00010674,2]
[399405088,1766327729077,-151.0,0.00010674,2]
[399405089,1766327729087,-151.0,0.00010674,2]
[399405090,1766327729096,-151.0,0.00010674,2]
[399405091,1766327729105,-151.0,0.00010674,2]
[399405092,1766327729115,-229.55899269,0.00010674,2]
[399405093,1766327729125,-150.0,0.00010679,2]
[399405094,1766327729135,-500.0,0.00010679,2]
[399405095,1766327729144,-1101.62355976,0.00010679,3]
[399405096,1766327729154,-1101.62355977,0.00010679,3]
[399405097,1766327729163,-2023.23,0.0001068,2]
[399405098,1766327729173,-150.99,0.0001068,2]
[399405099,1766327729183,-999.99,0.0001068,2]
[399405100,1766327729193,-150.99,0.0001068,2]
[399405101,1766327729203,-9999.99,0.0001068,2]
[399405102,1766327729212,-299.99,0.0001068,2]
[399405103,1766327729223,-6042.44,0.0001068,2]
[399405104,1766327729232,-3518.42,0.0001068,2]
[399405105,1766327729243,-33494.9637,0.00010682,2]
[399405106,1766327729253,-1000.0,0.00010682,2]
[399405107,1766327729263,-267.40656056,0.000107,2]
[399405108,1766327729274,-174.93,0.00010726,2]
[399405109,1766327729284,-3451.84,0.00010791,2]
[399405110,1766327729293,-1024.60831878,0.000108,2]
[399405111,1766327729302,-587.0,0.00010889,2]
[399405112,1766327729312,-2351.0,0.00010889,2]
[399405113,1766327729322,-165.49149056,0.000109,2]
[399405114,1766327729331,-165.49149056,0.000109,2]
[399405115,1766327729341,-500.0,0.00010953,2]
[399405116,1766327729350,-9394.26035171,0.00011,2]
[399405117,1766327729360,-320.06511931,0.00011,2]
[399405118,1766327729369,-151.1,0.00011059,2]
[399405119,1766327729378,-22823.29795472,0.00011099,2]
[399405120,1766327729388,-21172.24418781,0.00011099,2]
[399405121,1766327729397,-500.0,0.00011227,2]
[399405122,1766327729406,-2213.15,0.0001145,2]
[399405123,1766327729416,-500.0,0.00011501,2]
[399405124,1766327729426,-255.0,0.00011604,2]
[399405125,1766327729435,-151.1,0.00011673,2]
[399405126,1766327729444,-3292.0,0.00011978,2]
[399405127,1766327729453,-576.0,0.00011978,2]
[399405128,1766327729463,-151.1,0.00012287,2]
[399405129,1766327729471,-433.0,0.00012725,2]
[399405130,1766327729481,-1000.0,0.0001285,2]
[399405131,1766327729490,-151.1,0.00012902,2]
[399405132,1766327729499,-60814.35216523,0.0001299,2]
[399405133,1766327729508,-201.53,0.00012999,2]
[399405134,1766327729518,-3409.0,0.00013175,2]
[399405135,1766327729528,-169.30599703,0.00013273,2]
[399405136,1766327729536,-500.0,0.00013273,2]
[399405138,1766327729546,-535.80488435,0.00013273,2]
[399405139,1766327729555,-500.0,0.00013273,2]
[399405140,1766327729565,-500.0,0.00013273,2]
[399405141,1766327729574,-500.28275711,0.00013273,2]
[399405143,1766327729583,-515.90612576,0.00013273,2]
[399405144,1766327729593,-168.62041939,0.00013273,2]